Cogmind - Beta 15 @@@ ROGUE MODE // 2025.07.08 @ 13:33:37 Player: beans Result: Smashed by cave-in Performance ------------- Evolutions (0) 0 Regions Visited (2) 400 Robots Destroyed (17) 85 Value Destroyed (281) 281 Prototype IDs (1) 20 Alien Tech Used (0) 0 Bonus (-12) -12 TOTAL SCORE: 774 Bonus ------- Friendly Fire -12 Cogmind --------- Core Integrity 0/250 Matter 236/300 Energy 100/100 System Corruption 9% Temperature Cool (70) Movement Flying (40) Location -10/Mines Parts ------- > --- POWER (1) -------- (None) > --- PROPULSION (2) --- Flight Unit > --- UTILITY (2) ------ Experimental Sensor Array Targeting Computer > --- WEAPON (2) ------- (None) > --- INVENTORY (5) ---- (None) Peak State ------------ > --- POWER ------------ Ion Engine > --- PROPULSION ------- Flight Unit Flight Unit > --- UTILITY ---------- Experimental Sensor Array Targeting Computer > --- WEAPON ----------- Light Assault Rifle Mining Laser > --- INVENTORY -------- (None) [Rating: 15] Favorites ----------- Power Ion Engine Engine Ion Engine Propulsion Light Treads Treads Light Treads Wheel Wheel Flight Unit Flight Unit Utility Targeting Computer Device Experimental Sensor Array Processor Targeting Computer Weapon Assault Rifle Ballistic Gun Assault Rifle Special Weapon Mining Laser Build | -11 -10 -10 ------- Run | Yrd Mat Min Slots Evolved . | . . . Power . | . . . Propulsion . | . . . Utility . | . . . Weapon . | . . . Parts Attached 16 | 5 4 7 Power 3 | 1 1 1 Engine 3 | 1 1 1 Core . | . . . Reactor . | . . . Propulsion 5 | 2 . 3 Treads 2 | 2 . . Leg . | . . . Wheel 1 | . . 1 Hover . | . . . Flight 2 | . . 2 Utility 3 | . 2 1 Device 1 | . . 1 Storage . | . . . Processor 2 | . 2 . Hackware . | . . . Protection . | . . . Artifact . | . . . Weapon 5 | 2 1 2 Energy Gun . | . . . Energy Cannon . | . . . Ballistic Gun 4 | 2 1 1 Ballistic Cannon . | . . . Launcher . | . . . Special Weapon 1 | . . 1 Impact Weapon . | . . . Slashing Weapon . | . . . Piercing Weapon . | . . . Special Melee Weapon . | . . . Unidentified Prototypes 1 | . . 1 Parts Lost 11 | . 4 7 Power 3 | . 2 1 Propulsion 3 | . 1 2 Utility . | . . . Weapon 5 | . 1 4 Highest Loss Streak 4 | . 3 4 To Critical Strikes . | . . . Average Backups 1 | . 1 2 Power . | . . . Propulsion . | . 1 . Utility . | . . . Weapon . | . . 1 Tool/Special . | . . . Unused Backups . | . . . Power . | . . . Propulsion . | . . . Utility . | . . . Weapon . | . . . Tool/Special . | . . . Average Slot Usage (%) 77 | . 73 80 Engine 10 | . 11 8 Treads 14 | . 26 3 Flight 10 | . . 19 Processor 17 | . 6 27 Ballistic Gun 22 | . 27 16 Special Weapon 1 | . . 2 Peak Build Rating 15 | 5 7 15 Average Rating 5 | 3 5 6 On Entrance 3 | . 5 5 Naked Turns . | . . . Heaviest Build 9 | 9 9 8 Greatest Support 40 | 40 40 20 Greatest Overweight (x) 2 | 2 . . Average Overweight (x) . | 1 . . Largest Inventory Capacity 5 | 5 5 5 Average Capacity 5 | 5 5 5 Most Carried 4 | 3 3 4 Average Carried 1 | 1 1 2 Final Capacity 5 | 5 5 5 Final Carried 2 | 1 2 . Class Distribution -------------------- 100% | Mutant Dominant Class ---------------- Mutant | -10/Materials Mutant | -10/Mines Resources | -11 -10 -10 ----------- Run | Yrd Mat Min Matter Collected 571 | 90 411 70 Remotely . | . . . Salvage Created 499 | . 474 25 Parts 37 | . 37 . Haulers Intercepted 2 | . 2 . Recyclers Shooed 1 | . 1 . Parts Field Recycled . | . . . Retrieved Matter . | . . . Parts Self-Destructed . | . . . Prevented . | . . . Kills | -11 -10 -10 ------- Run | Yrd Mat Min Combat Hostiles Destroyed 11 | . 9 2 Guns 11 | . 9 2 Classes Destroyed 7 | . 6 1 Builder 3 | . 3 . Tunneler 1 | . 1 . Hauler 2 | . 2 . Watcher 2 | . 2 . Swarmer 4 | . 4 . Grunt 5 | . 5 . Assembled 2 | . . 2 Best Kill Streak 3 | . 3 1 Combat Bots Only 3 | . 3 1 Max Kills in Single Turn 2 | . 2 1 Gunslinging 1 | . 1 . Exploded . | . . . Melee . | . . . Uniques/NPCs Destroyed . | . . . Combat | -11 -10 -10 -------- Run | Yrd Mat Min Hostile Shots Fired 109 | . 85 24 Missed 28 | . 23 5 Hits 81 | . 62 19 Melee 4 | . . 4 Projectile 77 | . 62 15 Critical Strikes 1 | . . 1 Part Disruptions 1 | . . 1 Damage Taken 1248 | . 620 628 Core 292 | . 139 153 Absorbed by Shields . | . . . Core Remaining (%) 100 | 100 . . Volleys Fired 73 | . 50 23 Largest 2 | . 2 2 Hottest 100 | . 40 100 Shots Fired 125 | . 97 28 Gun 116 | . 97 19 Cannon . | . . . Launcher . | . . . Special 9 | . . 9 Kinetic 116 | . 97 19 Thermal 9 | . . 9 Explosive . | . . . Electromagnetic . | . . . Robot Hit Streak 14 | . 14 8 Robot Miss Streak 5 | . 5 4 Penetration Max . | . . . Secondary Targets 5 | . 4 1 Max Gunslinging Chain 1 | . 1 1 Shots Hit Robots 73 | . 63 10 Core Hits 32 | . 26 6 Critical Kills 1 | . 1 . Critical Parts Destroyed . | . . . Critical Strikes 1 | . 1 . Destroy 1 | . 1 . Melee Attacks . | . . . Impact . | . . . Slashing . | . . . Piercing . | . . . Sneak Attacks . | . . . Combat Hostiles . | . . . Follow-up Attacks . | . . . Damage Inflicted 907 | . 801 106 Guns 907 | . 801 106 Cannons . | . . . Explosions . | . . . Melee . | . . . Ramming . | . . . Kinetic 907 | . 801 106 Thermal . | . . . Explosive . | . . . Electromagnetic . | . . . Impact . | . . . Slashing . | . . . Piercing . | . . . Highest Corruption . | . . . Average Corruption . | . . . Corruption Purged . | . . . Corruption Blocked . | . . . Overload Shots . | . . . Overflow Damage . | . . . Projectiles . | . . . Explosions . | . . . Melee . | . . . Knockbacks . | . . . Impact . | . . . Kinetic . | . . . Secondary . | . . . Self-Inflicted Damage . | . . . Shots . | . . . Rammed . | . . . Targets Rammed . | . . . Kicked . | . . . Crushed . | . . . Highest Temperature 114 | . 5 114 Average Temperature 32 | . 3 36 Received Heat Transfer 449 | . 249 200 Siege Activations . | . . . Martial Activations . | . . . Shielding Activations . | . . . Robots Disrupted . | . . . Combat Hostiles . | . . . Robots Corrupted . | . . . Combat Hostiles . | . . . Parts Fried . | . . . Impact Corruptions . | . . . Robots Melted . | . . . Combat Hostiles . | . . . Parts Melted . | . . . Heat Transferred . | . . . Parts Sabotaged . | . . . Parts Stolen . | . . . Parts Stripped . | . . . Power Chain Reactions . | . . . Alert | -11 -10 -10 ------- Run | Yrd Mat Min Maximum Alert Level . | . . . Low Security (%) 100 | 100 100 100 Level 1 . | . . . Level 2 . | . . . Level 3 . | . . . Level 4 . | . . . Level 5 . | . . . High Security . | . . . Max Security . | . . . Peak Influence 106 | . 106 4 Initial 4 | . . 4 Average 22 | . 51 . Influence Increases 262 | . 261 1 Destroy 0b10 Robot/C 180 | . 180 . Destroy 0b10 Robot/NC 40 | . 40 . Destroy Leader 38 | . 38 . Successful Hack 2 | . 2 . Destroy Structure 2 | . 1 1 Influence Decreases 262 | . 249 13 Entered New Map 8 | . . 8 Time Decay 214 | . 209 5 Lost Part 40 | . 40 . Squads Dispatched 1 | . 1 . Investigation . | . . . Extermination . | . . . Reinforcement 1 | . 1 . Assault . | . . . Garrison . | . . . Intercept . | . . . Searches Triggered . | . . . Construction Impeded . | . . . Haulers Reinforced . | . . . Active Scanning Responses . | . . . Cargo Convoy Interrupts . | . . . Stealth | -11 -10 -10 --------- Run | Yrd Mat Min Distress Signals 2 | . 2 . Communications Jammed . | . . . Distress Signals . | . . . Times Spotted 31 | . 18 13 Peak Tracking Total 6 | . 4 6 Tactical Retreats 7 | . . 7 Traps | -11 -10 -10 ------- Run | Yrd Mat Min Traps Triggered . | . . . Indirectly . | . . . Trap Hack Attempts . | . . . Triggered . | . . . Disarmed . | . . . Reprogrammed . | . . . Reused . | . . . Traps Extracted . | . . . Installed . | . . . Triggered . | . . . Machines | -11 -10 -10 ---------- Run | Yrd Mat Min Machines Disabled . | . . . Max in Single Turn . | . . . Machines Repaired . | . . . Machines Dismantled . | . . . Machines Sabotaged . | . . . Overloaded Fab Kills . | . . . Hacking | -11 -10 -10 --------- Run | Yrd Mat Min Machines Accessed 1 | . 1 . Terminals 1 | . 1 . Fabricators . | . . . Repair Stations . | . . . Recycling Units . | . . . Scanalyzers . | . . . Garrison Access . | . . . Total Hacks 3 | . 3 . Successful 1 | . 1 . Failed 2 | . 2 . Catastrophic . | . . . Database Lockouts . | . . . Manual . | . . . Terminals 3 | . 3 . Fabricators . | . . . Repair Stations . | . . . Recycling Units . | . . . Scanalyzers . | . . . Garrison Access . | . . . Terminal Hacks 1 | . 1 . Record 1 | . 1 . Fabricator Hacks . | . . . Repair Station Hacks . | . . . Recycling Unit Hacks . | . . . Scanalyzer . | . . . Garrison Access Hacks . | . . . Unauthorized Hacks . | . . . Terminals . | . . . Fabricators . | . . . Repair Stations . | . . . Recycling Units . | . . . Scanalyzers . | . . . Garrison Access . | . . . Data Cores Recovered . | . . . Used . | . . . Hacking Detections 1 | . 1 . Full Trace Events 1 | . 1 . Feedback Events . | . . . Feedback Blocked . | . . . Robot Schematics Acquired . | . . . Robots Built . | . . . Authchips . | . . . Time . | . . . Total Robot Build Rating . | . . . Part Schematics Acquired . | . . . Parts Built . | . . . Authchips . | . . . Time . | . . . Total Part Build Rating . | . . . Parts Repaired . | . . . Time . | . . . Parts Recycled . | . . . Recycled Matter . | . . . Retrieved Matter . | . . . Retrieved Components . | . . . Parts Scanalyzed . | . . . Part Schematics Acquired . | . . . Parts Damaged . | . . . Bothacking | -11 -10 -10 ------------ Run | Yrd Mat Min Used RIF Installer . | . . . Robots Hacked . | . . . Non-combat . | . . . Combat . | . . . Robot Hacks Applied . | . . . Relay Couplers Released . | . . . Fabnet Peak Effective % . | . . . Robots Rewired . | . . . Allies Hacked . | . . . Hacks Repelled . | . . . Allies | -11 -10 -10 -------- Run | Yrd Mat Min Total Allies 1 | . . 1 Largest Group 1 | . . 1 Highest-Rated Group 31 | . . 31 Highest-Rated Ally 31 | . . 31 Total Orders . | . . . Ally Attacks 3 | . . 3 Total Damage 20 | . . 20 Kills . | . . . Allies Corrupted . | . . . Allies Melted 1 | . . 1 Intel | -11 -10 -10 ------- Run | Yrd Mat Min Active Infowar (turns) 23 | . . 23 Sensors 23 | . . 23 Robot Analysis Total . | . . . Derelict Logs Recovered 1 | . . 1 Drone Launches . | . . . Drone Recoveries . | . . . Exploration | -11 -10 -10 ------------- Run | Yrd Mat Min Turns Passed 1246 | 88 552 606 Spaces Moved 662 | 61 246 355 Core 117 | 45 . 72 Treads 322 | 16 246 60 Legs . | . . . Wheels 2 | . . 2 Hover . | . . . Flight 221 | . . 221 Fastest Speed 37 | 50 160 37 Average Speed 103 | 128 160 60 Slowest Speed 160 | 160 160 160 Overloaded Moves . | . . . Propulsion Burnouts . | . . . Robots Hopped 1 | . . 1 Potential Cave-ins . | . . . Cave-ins Triggered 1 | . . 1 Exploration Rate (%) 29 | 3 43 43 Regions Visited 2 Branch Regions 1 Pre-discovered Areas . | . . . Known Exits Taken . | . . . Unknown Exits Taken 2 | 1 1 . Scrap Searched 1 | . . 1 Spaces Dug 8 | . . 8 Terrain Destroyed 9 | . . 9 Melee . | . . . Projectile 9 | . . 9 AOE . | . . . Terrain Rammed . | . . . Walls Destroyed . | . . . Machines Disabled . | . . . Actions | -11 -10 -10 --------- Run | Yrd Mat Min Total 1082 | 71 308 703 Wait 314 | . 4 310 Move 658 | 60 245 353 Hop 1 | . . 1 Pick Up 16 | 6 5 5 Fast Attach . | . . . Attach 17 | 5 4 8 Detach 2 | . . 2 Swap . | . . . Drop 1 | . . 1 Fire 73 | . 50 23 Melee . | . . . Ram . | . . . Kick . | . . . Crush . | . . . Escape Stasis . | . . . Rewire . | . . . Trap . | . . . Miscellaneous . | . . . Route ------- -11/Scrapyard -10/Materials (discovered 3 exits: *Mat x2 / [*Min]) -10/Mines (discovered 1 exit: Mat) History --------- Turn | Location | Event 8 | -11/Scrapyard | Discovered new exit (range 15) 89 | -11/Scrapyard | Entered Materials 222 | -10/Materials | Discovered new exit (range 11) 305 | -10/Materials | Build established: Mutant 413 | -10/Materials | Discovered new exit (range 14) 535 | -10/Materials | Discovered new exit (range 12) 568 | -10/Materials | Core integrity fell below 50% 606 | -10/Materials | Lost 3 parts (1p1n1w) 641 | -10/Materials | Entered Mines 644 | -10/Mines | Received a Mining Laser from a helpful Derelict 654 | -10/Mines | Identified exit to Materials 688 | -10/Mines | Assembled infested the area 748 | -10/Mines | Found a damaged Exp. Sensor Array with a note attached 777 | -10/Mines | Found Prototype Device 819 | -10/Mines | Lost 3 parts (1n2w) 845 | -10/Mines | Core integrity fell below 20% 1225 | -10/Mines | Identified Exp. Sensor Array 1248 | -10/Mines | Crushed by falling debris 1248 | -10/Mines | Smashed by cave-in Last Messages --------------- Acquired 38 matter. Acquired Ion Engine. K-01 Serf collects debris. Acquired 10 matter. K-01 Serf collects debris. Acquired 6 matter. Acquired 10 matter. T-07 Excavator is excavating. Discarded Targeting Computer. Identified Exp. Sensor Array. The unstable cave ceiling collapses. Crushed by falling debris. Flight Unit destroyed. System corrupted by crushing effect (+3). Ion Engine destroyed. System corrupted by crushing effect (+1). Lgt. Assault Rifle destroyed. System corrupted by crushing effect (+4). Mining Laser destroyed. System corrupted by crushing effect (+1). Map ----- +----------------------------------------------------+ | ???????????# #????# ##???# #? | | ???????????# ##????## ##????# ## | | ???????????# ###??????# ####### | | ???????????# #????????# #### | | ???????????# #####????###### #### | | ???????????# #?????????# #? | | ???????????# ########??#### #? | | ???????????##### #?????# #? | | ???????????????######## #?????# ## | | ??????????????????##### #?????# | | ?????????????????## ## ##????#### | | ????????????????## # #####???? | | ???????????????## # ##### | | ??????????????## # # # # | | ??????????????# # # | | ??????????????## % | | ???????????????## ## % %% | | ????####????????## ## # ! | | ???## ###???????# # # % | | ???# #######?## " ## # # | | ???# #??## ## ## ## | | ??## #???## ###%[## | | ??# ##????# #?#= ### | | ??# ## ##?????# #?# #?## # | | ??# ?### ###??????# ### ##?# # | | ??## "#?#@#????????# ## ### # | | ???##?### ##????????# ## # | | ????#?#?##??????????#####* # # | | ????# #?????????????????#= # # | | ????# #????????????????## ! # | | ????# #######?????????## *%= ##### | | ????# ##????????# !%!#???? | | ????# #???????## = #???? | | ????#### #??????## ##???? | | ???????## ######## ##????? | | ????????# ## ## #?????? | | ????????# ##?????? | | ????????# #####??????? | | ????????# ##??????????? | | ????????## ##???????????? | | ?????????####### ####????????????? | | ???????????????####???????????????? | | ??????????????????????????????????? | | | | | | | | | | | | | | | +----------------------------------------------------+ Best States ------------- Heat Dissipation 25 Energy Generation 10 Energy Capacity 250 Matter Stores 240 Matter Capacity 300 Sight Range 16 Robot Scan Range 20 Terrain Scan Density 10 Evasion (%) 62 Targeting Accuracy 10 Recoil Reduction 2 Item Schematics ----------------- None Robot Schematics ------------------ None Fabricated ------------ Nothing Repaired ---------- Nothing Alien Tech Used ----------------- None Achievements -------------- None Challenges ------------ None Game ------ Seed StrikeIonLoader Manual? 0 Play Time 00:12:33 Cumulative 43.8 hours Start 2025.07.08 @ 13:25:33 End 2025.07.08 @ 13:33:37 Sessions 1 Manual Loads 0 Difficulty Rogue Special Mode None Game No. 206 Rogue 206 Adventurer 0 Explorer 0 Win Type - Total 0 Types 0/0/0/0/0/0/0/0/0/0 Lore% 32 Gallery% 25 Achievement% 22 Wizard Run 0 Options --------- Layout 2 ASCII 0 Keyboard 0 Movement Mouse Keybinds 0 Fullscreen 1 Font 24/Smallcaps Map View 50x44 Zoom Use 0% Tactical HUD 0 Map Filters NONE Filters NONE Steam 1 RUN: 0995f543-9470-471f-9fa8-58cd0288fe12